bitfinex/quotes_ETHUSD_20250715
["timestamp","ask_amount","ask_price","bid_price","bid_amount"]
[1752583049008,0.1664,3003.2,3003.1,1e-08]
[1752583049209,3.33031798,3002.8,3002.1,0.04]
[1752583049547,0.1664,3002.3,3002.2,3.33089068]
[1752583049717,0.77574157,3003.2,3002.1,0.07331001]
[1752583050048,0.1664,3002.9,3002.2,0.1664]
[1752583050251,0.1664,3002.9,3002.4,3.33066106]
[1752583050425,0.1664,3002.9,3002.3,3.33071845]
[1752583050622,3.33023353,3002.8,3002.2,0.1664]
[1752583050927,0.1664,3002.6,3002.1,3.53730865]
[1752583051255,36.044,3002.7,3002.1,0.04]
[1752583051256,6.044,3002.7,3002.1,0.04]
[1752583051413,0.1664,3002.4,3002.1,3.37099046]
[1752583051614,6.043,3002.3,3002.2,3.33089068]
[1752583051829,6.043,3002.4,3002.2,3.33089068]
[1752583052318,6.043,3002.4,3002.1,0.2064]
[1752583052527,6.043,3002.4,3002.1,0.04]
[1752583052753,6.2094,3002.4,3002.1,0.04]
[1752583053053,6.2094,3002.4,3002.2,0.30447036]
[1752583053365,6.2094,3002.4,3002.3,0.30447036]
[1752583054361,6.2094,3002.4,3002.1,0.04]
[1752583054528,6.2094,3002.4,3002.2,0.30437514]
[1752583054712,6.83034,3002.4,3002.3,0.30437514]
[1752583054913,10.16100879,3002.4,3002.3,0.30437514]
[1752583055145,6.83034,3002.4,3002.3,0.30437514]
[1752583055347,10.16100879,3002.4,3002.3,0.30437514]
[1752583056199,10.16100879,3002.4,3002.1,0.04]
[1752583056200,3.33089068,3002.2,3002.1,0.04]
[1752583056342,43.33089068,3002.2,3002.1,0.34422805]
[1752583056832,13.33104873,3002.1,3001.1,0.2064]
[1752583057037,3.33187642,3001.4,3001.1,0.2064]
[1752583057236,15.7534777,3001.3,3001.1,0.04]
[1752583057436,33.49840053,3001.2,3001.1,0.04]
[1752583057677,43.49840053,3001.2,3001.1,0.04]
[1752583057859,40.9458,3001.2,3001.1,0.04]
[1752583058185,10.9458,3001.2,3001.1,0.04]
[1752583058480,10.1664,3001.2,3001.1,0.04]
[1752583059063,44.4689216,3001.2,3001.1,0.04]
[1752583059641,45.7869216,3001.2,3001.1,0.04]
[1752583059843,45.2369216,3001.2,3001.1,0.04]
[1752583060176,57.3019216,3001.2,3001.1,0.04]
[1752583061744,57.3019216,3001.2,3001.1,1e-08]
[1752583061745,57.8519216,3001.2,3001.1,1e-08]
[1752583061949,13.88233363,3000.9,3000.8,0.001]
[1752583062171,65.04653721,3000.9,3000.8,0.001]
[1752583062345,65.04653721,3000.9,3000.8,1e-08]
[1752583063208,65.04653721,3000.9,2999.5,0.1674]
[1752583063209,10.8047,3000.2,2999.5,0.001]
[1752583063507,56.19881112,3000.2,2999.5,0.001]
[1752583063805,0.55,3000.0,2999.5,0.001]
[1752583063962,10.0,2999.6,2999.5,0.001]
[1752583064163,22.059,2999.6,2999.5,0.001]
[1752583065012,10.0,3000.3,2999.6,3.33377009]
[1752583065161,6.028,3000.2,2999.6,0.8146]
[1752583065360,4.13173872,3000.6,2999.8,3.33349204]
[1752583065361,6.027,3000.1,2999.8,3.33349204]
[1752583065669,6.027,3000.0,2999.8,3.33349204]
[1752583065866,6.027,3000.0,2999.6,4.14835323]
[1752583065867,0.799,3000.6,2999.6,0.8146]
[1752583066072,10.0,3000.4,2999.7,3.33359215]
[1752583066283,10.0,3000.4,2999.5,3.33486454]
[1752583066284,10.0,3000.2,2999.5,0.001]
[1752583066606,9.36022609,3000.1,2999.5,3.33483493]
[1752583066767,16.027,3000.1,3000.0,0.001]
[1752583067114,1.27979047,3000.4,3000.0,0.001]
[1752583067408,10.0,3000.1,3000.0,0.001]
[1752583067765,19.35822222,3000.1,3000.0,0.001]
[1752583068270,49.35822222,3000.1,3000.0,0.001]
[1752583068470,16.025,3000.1,3000.0,0.001]
[1752583069798,16.024,3000.1,3000.0,3.33433333]
[1752583070006,16.024,3000.1,3000.0,0.001]
[1752583070179,16.024,3000.1,3000.0,3.33433333]
[1752583070373,0.7639,3000.9,3000.0,3.33433333]
[1752583070612,10.0,3000.4,3000.0,0.001]
[1752583070832,6.022,3000.3,3000.0,0.001]
[1752583071120,10.0,3000.6,3000.5,3.33277787]
[1752583071277,6.021,3000.6,3000.2,3.3330203]
[1752583071637,6.021,3000.6,3000.0,0.001]
[1752583071777,9.35373131,3000.6,3000.1,0.30280455]
[1752583072126,9.35373131,3000.6,3000.0,0.001]
[1752583072127,13.33322222,3000.1,3000.0,0.001]
[1752583072422,49.35322222,3000.1,3000.0,0.30386438]
[1752583072582,49.35322222,3000.1,3000.0,0.001]
[1752583072783,49.35322222,3000.1,3000.0,0.30390918]
[1752583073245,49.35322222,3000.1,3000.0,0.001]
[1752583073714,56.5905564,3000.1,3000.0,0.001]
[1752583074091,49.35322222,3000.1,3000.0,0.001]
[1752583075308,46.02,3000.1,3000.0,0.001]
[1752583075514,10.0,3000.1,3000.0,0.001]
[1752583075832,16.016,3000.1,3000.0,0.001]
[1752583076136,10.0,3000.1,3000.0,0.001]
[1752583076347,46.015,3000.1,3000.0,0.30441265]
[1752583076563,50.36486222,3000.1,3000.0,0.001]
[1752583076844,41.01664,3000.1,3000.0,0.001]
[1752583076985,46.014,3000.1,3000.0,0.001]
[1752583077185,10.0,3000.1,3000.0,0.30441477]
[1752583077397,16.013,3000.1,3000.0,0.30441477]
[1752583077813,16.013,3000.1,3000.0,3.33433333]
[1752583078013,16.013,3000.1,3000.0,0.30472882]
[1752583078223,16.013,3000.1,3000.0,0.001]
[1752583078428,19.34622222,3000.1,3000.0,0.001]
[1752583078941,50.10662222,3000.1,3000.0,0.001]
[1752583079241,46.011,3000.1,3000.0,0.001]
[1752583079534,46.01,3000.1,3000.0,0.001]
[1752583080454,40.0,3000.1,3000.0,0.001]
[1752583080738,46.009,3000.1,3000.0,0.001]
[1752583081339,40.0,3000.1,3000.0,0.001]
[1752583081541,3.33255732,3000.7,3000.0,0.7825]
[1752583081710,0.1664,3000.4,3000.0,0.7825]
[1752583081912,10.0,3000.2,3000.0,0.7825]
[1752583082222,36.007,3000.1,3000.0,0.001]
[1752583082400,49.34022222,3000.1,3000.0,0.001]
[1752583082596,46.007,3000.1,3000.0,0.001]
[1752583082942,49.34022222,3000.1,3000.0,0.001]
[1752583083143,46.005,3000.1,3000.0,0.001]
[1752583083314,6.005,3000.1,3000.0,0.001]
[1752583083636,0.1664,3000.4,3000.1,3.33314571]
[1752583083842,6.005,3000.3,3000.1,3.33314571]
[1752583084328,6.005,3000.3,3000.2,3.33311112]
[1752583084638,6.005,3000.3,3000.0,3.33425913]
[1752583084813,6.005,3000.3,3000.0,0.001]
[1752583085014,13.33322222,3000.1,3000.0,0.001]
[1752583085219,46.1694,3000.1,3000.0,0.001]
[1752583085615,49.50262222,3000.1,3000.0,0.001]
[1752583085834,46.1684,3000.1,3000.0,0.001]
[1752583085999,49.50162222,3000.1,3000.0,0.001]
[1752583086199,51.4532938,3000.1,3000.0,0.001]
[1752583087547,46.1684,3000.1,3000.0,0.001]
[1752583087736,36.002,3000.1,3000.0,0.001]
[1752583087931,6.002,3000.1,3000.0,3.33433333]
[1752583088821,6.004,3000.1,3000.0,0.001]
[1752583089142,16.004,3000.1,3000.0,0.001]
[1752583089342,16.004,3000.1,3000.0,3.33433333]
[1752583089903,16.004,3000.1,3000.0,0.001]
[1752583090106,16.004,3000.1,3000.0,3.33433333]
[1752583090645,49.33722222,3000.1,3000.0,0.001]
[1752583090845,47.78744,3000.1,3000.0,0.001]
[1752583091050,51.12066222,3000.1,3000.0,0.001]
[1752583091710,51.91026222,3000.1,3000.0,0.001]
[1752583091916,52.46026222,3000.1,3000.0,0.001]
[1752583092307,54.46026222,3000.1,3000.0,0.001]
[1752583092712,51.91026222,3000.1,3000.0,0.001]
[1752583092943,52.46026222,3000.1,3000.0,0.001]
[1752583094033,48.57704,3000.1,3000.0,0.001]
[1752583094234,12.1484,3000.1,3000.0,0.001]
[1752583094439,6.1574,3000.1,3000.0,0.001]
[1752583094742,20.82692222,3000.1,3000.0,0.001]
[1752583094969,52.82692222,3000.1,3000.0,1e-08]
[1752583095125,4.67007783,2999.6,2999.5,0.001]
[1752583095324,3.33422245,2999.2,2999.1,0.04]
[1752583095662,3.33422245,2999.2,2998.1,0.8191]
[1752583095663,3.33533453,2998.2,2998.1,0.04]
[1752583095961,55.31033453,2998.2,2998.1,0.04]
[1752583096320,55.47234846,2998.2,2998.1,0.04]
[1752583096565,56.02234846,2998.2,2998.1,0.04]
[1752583097064,56.83704846,2998.2,2998.1,0.04]
[1752583097249,56.83704846,2998.2,2998.1,1e-08]
[1752583097250,66.84504846,2998.2,2998.1,1e-08]
[1752583097649,0.8283,2998.0,2996.8,0.753]
[1752583097823,10.0,2997.8,2996.8,0.753]
[1752583098028,10.0,2997.6,2996.8,0.753]
[1752583098228,10.0,2997.4,2996.8,0.753]
[1752583098457,0.8283,2998.0,2996.8,0.753]
[1752583098458,10.0,2997.2,2996.8,0.753]
[1752583099865,40.55,2997.2,2996.4,0.8091]
[1752583100164,40.7875,2997.2,2996.5,0.8091]
[1752583100372,45.983,2997.2,2996.9,3.33677595]
[1752583100556,15.983,2997.2,2996.8,3.3368648]
[1752583100754,19.31944735,2997.2,2996.6,3.33708127]
[1752583100968,19.31944735,2997.2,2996.5,4.14628811]
[1752583101132,45.983,2997.2,2996.5,0.8091]
[1752583101324,49.31944735,2997.2,2996.6,3.33708453]
[1752583101769,0.7739,2997.6,2996.7,3.33692405]
[1752583102064,8.17001393,2998.2,2996.5,0.8091]
[1752583102065,3.33644735,2997.2,2996.5,4.14629201]
[1752583102226,52.30791556,2997.2,2996.2,0.7883]
[1752583102823,52.30791556,2997.2,2997.1,1e-08]
[1752583103028,52.30791556,2997.2,2996.1,0.04]
[1752583103029,10.0,2996.2,2996.1,0.04]
[1752583103229,15.98,2996.2,2996.1,0.04]
[1752583103472,0.7884,2996.4,2996.1,0.04]
[1752583103694,45.979,2996.3,2996.1,0.04]
[1752583103828,43.88756091,2996.2,2996.1,0.04]
[1752583104029,43.33756091,2996.2,2996.1,0.04]
[1752583104252,43.88756091,2996.2,2996.1,0.04]
[1752583104470,44.68036091,2996.2,2996.1,0.04]
[1752583104653,46.34762912,2996.2,2996.1,0.04]
[1752583105042,40.0,2996.2,2996.1,0.04]
[1752583105372,13.33756091,2996.2,2996.1,0.04]
[1752583105575,44.67156091,2996.2,2996.1,0.04]
[1752583105746,44.12156091,2996.2,2996.1,0.04]
[1752583105928,51.90889509,2996.2,2996.1,0.04]
[1752583106358,3.88778371,2996.0,2995.9,0.001]
[1752583106559,3.33867521,2995.2,2995.1,0.04]
[1752583106761,50.67487521,2995.2,2995.1,0.04]
[1752583106930,50.67487521,2995.2,2995.1,4e-08]
[1752583107148,13.33889816,2995.0,2994.9,0.001]
[1752583107340,56.55123234,2995.0,2994.9,0.001]
[1752583107535,56.55123234,2995.0,2994.5,1e-08]
[1752583107536,4.70184415,2994.6,2994.5,1e-08]
[1752583107741,50.67684415,2994.6,2994.5,1e-08]
[1752583107941,50.67684415,2994.6,2993.1,0.04]
[1752583107942,3.88979026,2994.2,2993.1,0.04]
[1752583108143,3.34090605,2993.2,2993.1,0.04]
[1752583108381,3.34090605,2993.2,2992.8,0.2495]
[1752583108382,13.34124093,2992.9,2992.8,0.2495]
[1752583108675,62.52657511,2992.9,2992.8,0.2495]
[1752583108983,0.55,2992.7,2991.3,0.8226]
[1752583109180,7.23733418,2992.1,2991.3,0.8226]
[1752583109380,10.0,2991.9,2991.3,0.8226]
[1752583109543,10.0,2991.7,2991.4,3.34291636]
[1752583109739,10.0,2991.5,2991.4,3.34291636]
[1752583110047,3.34203245,2992.2,2991.4,3.34291636]
[1752583110048,10.55,2992.6,2991.7,3.34252722]
[1752583110266,0.55,2992.4,2992.3,3.3419109]
[1752583110467,10.55,2992.4,2991.5,0.8226]
[1752583110637,0.8125,2993.2,2991.5,0.8226]
[1752583110837,0.55,2993.5,2993.0,3.3411151]
[1752583111179,0.55,2993.5,2992.4,0.8226]
[1752583111180,6.91385,2993.4,2993.3,3.34079444]
[1752583111365,0.04,2994.9,2993.8,3.34014266]
[1752583111366,0.8125,2994.1,2993.8,3.34014266]
[1752583111566,0.04,2993.9,2993.8,3.34023648]
[1752583111894,8.019,2994.7,2992.6,0.8226]
[1752583111895,0.8525,2994.9,2994.2,3.33979026]
[1752583112191,0.04,2994.9,2994.8,3.33912114]
[1752583112481,0.04,2994.9,2994.6,4.09334885]
[1752583112684,0.04,2994.9,2994.8,3.33912114]
[1752583112981,0.04,2995.9,2995.8,3.33800654]
[1752583113186,0.04,2995.9,2995.6,0.8224]
[1752583113385,30.0,2995.8,2995.6,0.8224]
[1752583113888,0.04,2995.9,2995.8,3.33800654]
[1752583114089,30.04,2995.9,2994.2,0.7818]
[1752583114243,30.0,2995.8,2995.3,3.33856268]
[1752583114444,30.0,2995.8,2994.5,0.03339455]
[1752583114783,30.0,2995.8,2994.4,0.7818]
[1752583114784,15.19370422,2995.7,2994.4,0.7818]
[1752583115091,0.8034,2995.3,2993.9,0.7501]
[1752583115254,0.55,2995.0,2993.9,0.7501]
[1752583115588,10.55,2994.8,2994.2,3.33970225]
[1752583115880,10.55,2994.8,2993.1,0.04]
[1752583115881,0.55,2994.5,2993.8,3.34015398]
[1752583116086,35.972,2994.4,2993.8,3.34015398]
[1752583116243,40.0,2994.3,2993.5,0.7501]
[1752583116444,39.31081703,2994.2,2993.5,4.09056244]
[1752583116639,0.1664,2993.8,2993.7,3.34034806]
[1752583116886,3.33878668,2995.1,2994.1,3.33981906]
[1752583117185,13.33902308,2994.9,2994.2,3.33976201]
[1752583117375,10.0,2994.7,2994.6,3.33934415]
[1752583117574,10.0,2994.7,2994.5,0.7663]
[1752583117575,30.0,2994.7,2994.5,0.7663]
[1752583117745,30.0,2994.7,2993.9,0.7663]
[1752583117746,5.97,2994.6,2993.9,0.7663]
[1752583117946,10.0,2994.5,2994.2,3.33970501]
[1752583118178,10.0,2994.5,2994.0,3.34001336]
[1752583118179,10.0,2994.3,2993.9,0.7663]
[1752583118385,10.0,2994.1,2993.2,0.816]
[1752583118584,10.0,2993.9,2993.2,0.816]
[1752583118767,3.34036072,2993.7,2993.2,0.816]
[1752583118955,3.33990956,2994.1,2993.2,3.34090605]
[1752583119290,45.97,2994.0,2993.1,0.07341017]
[1752583119505,0.8284,2994.5,2994.2,3.33977769]
[1752583119693,10.0,2994.3,2993.7,3.34027883]
[1752583119853,10.0,2994.1,2993.8,3.34022302]
[1752583120048,10.0,2994.3,2993.8,3.34022302]
[1752583120248,10.0,2994.1,2993.4,0.8222]
[1752583120444,10.0,2994.3,2993.4,1.23850658]
[1752583120645,8.02,2994.7,2993.1,0.04]
[1752583120646,3.34048219,2993.6,2993.1,0.04]
[1752583120884,10.0,2993.5,2993.3,3.34071554]
[1752583121184,10.0,2993.5,2993.3,3.34074295]
[1752583121347,10.0,2994.1,2993.1,0.04]
[1752583121549,10.0,2993.9,2993.1,0.04]
[1752583121872,10.0,2993.4,2993.1,0.04]
[1752583122178,11.937,2995.1,2994.8,3.33901324]
[1752583122384,30.0,2995.0,2994.4,3.33950452]
[1752583122581,41.936,2995.0,2994.4,3.33947834]
[1752583122778,41.936,2995.0,2994.1,0.7989]
[1752583122779,11.936,2995.0,2994.1,4.1387642]
[1752583122951,11.936,2995.0,2994.2,3.33979026]
[1752583123151,30.0,2994.9,2994.1,0.7989]
[1752583123364,0.55,2994.7,2993.2,0.81400906]
[1752583123563,0.55,2994.5,2993.7,3.34033368]
[1752583123783,0.55,2994.3,2993.2,4.12149491]
[1752583123996,3.34041185,2993.7,2993.2,0.7806]
[1752583124179,11.936,2993.6,2993.5,3.34057123]
[1752583124793,11.936,2993.6,2993.3,3.34068537]
[1752583124964,11.936,2993.6,2993.5,3.34057123]
[1752583125305,10.0,2994.2,2993.5,3.34057123]
[1752583125505,10.0,2994.2,2993.4,3.34059787]
[1752583125709,10.0,2994.2,2993.2,3.34089631]
[1752583125710,3.34030851,2993.8,2993.2,3.34089631]
[1752583125869,3.34030851,2993.8,2993.1,0.04]
[1752583125870,10.0,2993.2,2993.1,0.04]
[1752583126065,21.935,2993.2,2993.1,0.04]
[1752583126770,22.1014,2993.2,2993.1,0.04]
[1752583126978,10.1664,2993.2,2993.1,0.04]
[1752583127176,10.0,2993.2,2993.1,0.04]
[1752583127401,10.1664,2993.2,2993.1,0.04]
[1752583127701,10.0,2993.2,2993.1,3.38101767]
[1752583128006,10.0,2993.3,2993.1,0.04]
[1752583128377,10.0,2993.2,2993.1,0.04]
[1752583128693,55.27490605,2993.2,2993.1,0.04]
[1752583129707,55.82490605,2993.2,2993.1,0.04]
[1752583129866,56.13402557,2993.2,2993.1,0.04]
[1752583130207,3.34039293,2993.7,2992.1,0.04]
[1752583130208,0.821,2994.8,2993.0,0.7548]
[1752583130366,0.832,2993.9,2993.0,0.7548]
[1752583130567,10.0,2993.7,2993.0,0.7548]
[1752583130848,0.832,2994.3,2993.2,3.34086869]
[1752583131153,3.33932937,2994.7,2993.9,3.3400616]
[1752583131154,30.0,2994.2,2993.9,3.3400616]
[1752583131441,15.966,2994.1,2993.9,3.3400616]
[1752583131643,15.966,2994.1,2993.7,3.34032723]
[1752583131644,15.966,2994.1,2994.0,3.34001336]
[1752583131852,10.0,2994.3,2993.9,3.34010178]
[1752583132073,5.966,2994.4,2994.3,3.33957597]
[1752583132221,0.7602,2995.1,2993.9,0.03340124]
[1752583132548,0.04,2994.9,2993.8,0.8137]
[1752583132751,0.04,2994.9,2994.6,0.8091]
[1752583132922,6.006,2994.9,2994.6,0.8091]
[1752583133110,6.006,2994.9,2994.3,3.33967552]
[1752583133315,6.006,2994.9,2994.4,3.33955103]
[1752583133502,6.0037866,2994.9,2994.4,3.33955103]
[1752583133706,0.0377866,2994.9,2994.5,0.7791]
[1752583134455,0.0377866,2994.9,2994.8,3.33912114]
[1752583135248,0.0377866,2994.9,2994.8,4.16672114]
[1752583135550,0.0377866,2994.9,2994.8,4.20011235]
[1752583135752,0.0377866,2994.9,2994.8,4.16672114]
[1752583135953,0.0377866,2994.9,2994.8,4.91731652]
[1752583136457,0.0377866,2994.9,2994.8,4.95070773]
[1752583136755,0.0377866,2994.9,2994.8,4.91731652]
[1752583136962,0.0377866,2994.9,2994.8,4.16672114]
[1752583137493,0.0377866,2994.9,2994.8,4.20011235]
[1752583138041,0.0377866,2994.9,2994.8,4.36651235]
[1752583138240,1e-08,2994.9,2994.8,4.88312114]
[1752583139380,1e-08,2994.9,2994.8,4.91651235]
[1752583139696,1e-08,2994.9,2994.8,6.67221083]
[1752583140473,1e-08,2994.9,2994.8,6.08881962]
[1752583140674,1e-08,2994.9,2994.8,4.33312114]
[1752583140876,1e-08,2994.9,2994.8,4.36651235]
[1752583141075,1e-08,2994.9,2994.8,0.994]
[1752583141278,1e-08,2994.9,2994.0,0.759]
[1752583141279,3.33966846,2994.4,2994.0,0.759]
[1752583141482,3.3395181,2994.5,2994.0,0.759]
[1752583141688,10.0,2994.5,2994.1,0.1664]
[1752583141850,0.1664,2994.6,2994.4,3.33956719]
[1752583142045,1e-08,2994.9,2994.4,0.33395672]
[1752583142046,0.31097487,2994.8,2994.4,0.33395672]
[1752583142368,1e-08,2994.9,2994.4,0.33395672]
[1752583142369,1e-08,2994.9,2994.8,3.33912114]
[1752583142563,1e-08,2994.9,2994.8,4.20311235]
[1752583142778,1e-08,2994.9,2994.8,4.71972114]
[1752583142976,5.959,2996.2,2994.8,0.8306]
[1752583143178,6.85447443,2996.2,2995.3,3.33846732]
[1752583143355,6.85447443,2996.2,2994.8,0.8306]
[1752583143356,13.3378702,2996.0,2994.8,0.8306]
[1752583143677,3.33833468,2995.6,2994.9,3.33900964]
[1752583144006,10.0,2995.2,2994.7,3.33919998]
[1752583144184,10.0,2995.0,2994.0,0.8121]
[1752583144500,3.33958445,2994.4,2994.0,0.8121]
[1752583144796,3.33915179,2994.8,2994.2,3.33978539]
[1752583144957,10.0,2994.6,2994.2,3.33978539]
[1752583145155,0.7571,2995.0,2994.2,3.33970259]
[1752583145490,3.88837935,2995.5,2994.4,0.7974]
[1752583145491,10.0,2995.5,2994.4,0.7974]
[1752583145691,30.0,2995.4,2994.5,0.03339455]
[1752583145848,0.04,2995.9,2995.1,0.7779]
[1752583146052,0.04,2995.9,2995.8,3.33800654]
[1752583146247,0.04,2995.9,2995.7,0.03338117]
[1752583146482,0.04,2995.9,2995.3,0.7882]
[1752583146685,0.04,2995.9,2995.6,3.33815429]
[1752583146947,0.04,2995.9,2995.3,0.7882]
[1752583147479,30.0,2995.8,2995.3,3.3384676]
[1752583147656,33.33800807,2995.8,2995.2,3.33860596]
[1752583147854,13.3779432,2995.9,2995.3,3.33855462]
[1752583148086,30.0,2995.8,2995.0,3.37228714]
[1752583148409,30.0,2995.8,2995.4,3.33837761]
[1752583148602,30.0,2995.8,2994.9,0.8161]
[1752583148603,3.33837817,2995.5,2994.9,0.8161]
[1752583148764,0.7759,2995.8,2995.0,0.03338898]
[1752583149080,0.04,2995.9,2995.0,0.03338898]
[1752583149281,0.04,2995.9,2995.8,3.33800654]
[1752583149639,30.04,2995.9,2995.3,3.33854878]
[1752583149801,30.0,2995.8,2995.5,3.33827971]
[1752583149968,30.0,2995.8,2994.9,0.8161]
[1752583150303,0.04,2995.9,2995.0,0.67721]
[1752583150612,30.0,2995.8,2995.0,3.33889816]
[1752583150784,30.0,2995.8,2995.1,0.03338786]
[1752583150992,0.04,2995.9,2994.9,0.8161]
[1752583151154,0.04,2995.9,2995.0,9.29389816]
[1752583151469,0.04,2995.9,2995.8,3.33800654]
[1752583152170,0.04,2995.9,2995.8,3.50440654]
[1752583152487,0.04,2995.9,2995.7,3.33803128]
[1752583152804,0.04,2995.9,2995.8,3.33800654]
[1752583153565,1e-08,2995.9,2995.8,3.33800654]
[1752583153766,1e-08,2995.9,2995.8,4.3394308]
[1752583155565,0.00200001,2995.9,2995.8,4.3394308]
[1752583156000,0.00200001,2995.9,2995.8,3.33800654]
[1752583156164,0.00200001,2995.9,2995.2,0.8228]
[1752583156165,0.00200001,2995.9,2995.7,3.33809908]
[1752583156361,0.00200001,2995.9,2995.8,3.33800654]
[1752583157059,1e-08,2995.9,2995.8,3.3713866]
[1752583157360,1e-08,2995.9,2995.8,4.1237866]
[1752583157560,1e-08,2995.9,2995.8,6.31550912]
[1752583157788,1e-08,2995.9,2995.8,16.31550912]
[1752583157989,1e-08,2995.9,2995.8,22.26650912]
[1752583159164,0.04,2996.9,2996.8,4.14579268]
[1752583159562,0.04,2996.9,2996.8,10.1291616]
[1752583159781,0.04,2996.9,2996.8,11.4424093]
[1752583160071,0.04,2996.9,2996.8,5.4924093]
[1752583160271,0.04,2996.9,2996.8,11.4414093]
[1752583160460,0.04,2996.9,2996.8,5.4924093]
[1752583160669,0.04,2996.9,2996.4,3.33723121]
[1752583161004,0.04,2996.9,2996.5,3.3371752]
[1752583161172,0.04,2996.9,2996.4,3.33733813]
[1752583161375,0.04,2996.9,2996.7,3.33693525]
[1752583161726,3.37685682,2996.9,2995.9,0.7574]
[1752583162019,10.751,2996.7,2995.5,0.789]
[1752583162179,3.33777964,2996.1,2995.4,3.33837239]
[1752583162379,0.1664,2996.1,2995.6,0.1664]
[1752583162579,3.50410126,2996.1,2995.6,0.1664]
[1752583162793,0.1664,2996.1,2995.6,3.50456938]
[1752583162992,0.1664,2996.1,2995.6,3.50458293]
[1752583163329,10.0,2996.5,2996.0,3.33771717]
[1752583163468,0.33768568,2996.8,2996.1,0.1664]
[1752583163469,0.1664,2996.7,2996.1,0.1664]
[1752583163663,0.1664,2996.7,2996.2,3.33749917]
[1752583163867,0.1664,2996.7,2996.1,0.1664]
[1752583163868,30.7774,2996.6,2996.1,0.1664]
[1752583164107,10.1664,2996.3,2995.7,0.1664]
[1752583164314,0.8174,2996.9,2995.4,5.947]
[1752583164612,0.1664,2996.6,2996.1,0.1664]
[1752583164813,0.7799,2996.2,2995.8,0.1664]
[1752583165118,10.1664,2996.4,2995.2,3.33863867]
[1752583165119,1e-08,2996.4,2996.3,3.33744952]
[1752583165504,1e-08,2996.4,2996.3,3.50384952]
[1752583166064,1e-08,2996.4,2996.3,0.1664]
[1752583166270,1e-08,2996.4,2995.9,3.33779718]
[1752583166571,13.83751942,2996.4,2995.9,0.1664]
[1752583166980,3.8375405,2996.4,2995.9,0.1664]
[1752583167187,10.0,2996.2,2995.9,0.1664]
[1752583167394,10.50011203,2996.4,2995.9,3.50425652]
[1752583167613,3.8375522,2996.4,2995.9,0.1664]
[1752583167878,3.8375522,2996.4,2995.6,3.33820167]
[1752583167879,0.1664,2996.1,2995.6,0.1664]
[1752583168088,3.50432841,2995.9,2995.4,0.1664]
[1752583168448,0.1664,2995.9,2995.4,0.1664]
[1752583168619,30.0,2995.8,2995.4,0.1664]
[1752583168994,30.0,2995.8,2994.9,0.8026]
[1752583169191,0.1664,2995.7,2995.2,0.1664]
[1752583169420,10.8028,2995.6,2995.2,0.1664]
[1752583169625,10.8028,2995.6,2994.6,4.16279453]
[1752583169626,0.1664,2995.5,2995.1,3.33871381]
[1752583169926,0.1664,2995.5,2994.4,5.946]
[1752583169927,30.0,2995.4,2994.4,0.001]
[1752583170231,10.0,2995.0,2994.4,0.001]
[1752583170381,0.1664,2994.8,2994.4,0.001]
[1752583170580,30.0,2994.7,2994.4,0.001]
[1752583170785,13.33945566,2994.5,2994.4,0.001]
[1752583171017,10.0,2994.5,2994.4,0.001]
[1752583171182,15.945,2994.5,2994.4,0.001]
[1752583171396,49.28445566,2994.5,2994.4,0.001]
[1752583171790,40.0,2994.5,2994.4,0.001]
[1752583172125,10.0,2995.0,2994.4,0.001]
[1752583172344,0.1664,2994.8,2994.5,3.33935122]
[1752583172641,0.1664,2994.8,2994.4,0.001]
[1752583172843,3.33945566,2994.5,2994.4,0.001]
[1752583173004,44.14125566,2994.5,2994.4,0.001]
[1752583173544,44.69125566,2994.5,2994.4,0.001]
[1752583174204,0.1664,2994.4,2994.1,0.04]
[1752583174407,0.7858,2993.2,2993.1,0.04]
[1752583175231,0.8305,2993.9,2993.1,0.04]
[1752583175430,10.0,2993.5,2993.1,0.04]
[1752583175640,5.944,2993.6,2993.5,3.34057123]
[1752583175641,0.1664,2993.6,2993.5,3.34057123]
[1752583175839,0.1664,2994.0,2993.8,3.34016153]
[1752583176010,10.7588,2994.3,2993.0,0.8172]
[1752583176210,10.0,2994.0,2993.0,0.8172]
[1752583176533,10.0,2993.6,2993.0,0.001]
[1752583176708,15.943,2993.6,2993.2,3.34079612]
[1752583176909,0.7543,2993.7,2993.1,3.38101102]
[1752583177112,13.34057976,2993.5,2993.3,0.001]
[1752583177422,40.0,2993.4,2993.3,0.001]
[1752583177846,10.0,2993.4,2993.3,0.001]
[1752583178552,0.7551,2993.9,2993.4,3.34068283]
[1752583178710,0.7551,2993.9,2993.3,0.001]
[1752583178711,10.0,2993.7,2993.5,3.34057123]
[1752583178910,10.0,2993.7,2993.3,0.001]
[1752583178911,10.0,2993.5,2993.3,0.001]
[1752583179251,10.0,2993.7,2993.3,0.001]
[1752583179252,40.0,2993.4,2993.3,0.001]
[1752583179545,15.942,2993.4,2993.3,0.001]
[1752583179707,0.7551,2993.9,2993.3,0.001]
[1752583179908,30.0,2993.8,2993.7,3.34034806]
[1752583180153,0.8065,2994.4,2993.7,3.34028295]
[1752583180448,30.0,2994.3,2994.2,3.33979026]
[1752583180633,0.8065,2994.7,2994.2,3.33979026]
[1752583180835,0.8065,2995.1,2994.1,0.84869901]
[1752583181034,0.8065,2995.1,2995.0,3.33889816]
[1752583181237,0.8065,2995.1,2994.2,0.418866]